lending/lending_fUSD_20260328
["ID","MTS","AMOUNT","RATE_DAILY","PERIOD"]
[419004533,1774738241122,-500.0,0.00013838,2]
[419004534,1774738241132,-500.0,0.00013838,2]
[419004535,1774738241141,-500.0,0.00013838,2]
[419004536,1774738241151,-500.0,0.00013838,2]
[419004537,1774738241161,-500.0,0.00013838,2]
[419004538,1774738241171,-500.0,0.00013838,2]
[419004539,1774738241180,-500.0,0.00013838,2]
[419004540,1774738241190,-500.0,0.00013838,2]
[419004541,1774738241199,-500.0,0.00013838,2]
[419004542,1774738241209,-500.0,0.00013838,2]
[419004543,1774738241219,-500.0,0.00013838,2]
[419004544,1774738241228,-500.0,0.00013838,2]
[419004545,1774738241238,-500.0,0.00013838,2]
[419004546,1774738241248,-1427025.39978773,0.00013839,2]
[419004547,1774738241258,-500.0,0.00013935,2]
[419004548,1774738241267,-277.78,0.00013994,2]
[419004549,1774738241277,-513.0,0.00014,2]
[419004550,1774738241286,-200.0,0.0001403,2]
[419004551,1774738241296,-2000.0,0.00014034,2]
[419004552,1774738241306,-3240.0,0.00014056,2]
[419004553,1774738241317,-166.66,0.00014065,2]
[419004554,1774738241327,-3658.78,0.00014125,2]
[419004555,1774738241337,-226.42,0.00014267,2]
[419004556,1774738241347,-277.79,0.00014268,2]
[419004557,1774738241356,-166.66,0.00014349,2]
[419004558,1774738241366,-1500.0,0.00014416,2]
[419004559,1774738241375,-161.62,0.00014467,2]
[419004560,1774738241385,-166.66,0.00014633,2]
[419004561,1774738241393,-255.0,0.00014787,2]
[419004562,1774738241404,-217.84187082,0.00014833,2]
[419004563,1774738241413,-166.66,0.00014917,2]
[419004564,1774738241423,-150.0,0.00014933,2]
[419004565,1774738241432,-1680.0,0.00015033,2]
[419004566,1774738241442,-160.0,0.00015427,2]
[419004567,1774738241452,-959.64475997,0.00015427,2]
[419004568,1774738241461,-361.0,0.00015442,2]
[419004569,1774738241470,-361.0,0.00015478,2]
[419004570,1774738241480,-4000.0,0.00015507,2]
[419004571,1774738241489,-361.0,0.00015658,2]
[419004572,1774738241499,-161.62,0.00015673,2]
[419004573,1774738241510,-150.9149,0.000157,2]
[419004574,1774738241522,-361.0,0.00015702,2]
[419004575,1774738241536,-361.0,0.00015714,2]
[419004576,1774738241549,-361.0,0.00015723,2]
[419004577,1774738241561,-361.0,0.00015767,2]
[419004578,1774738241574,-2000.0,0.00015789,2]
[419004579,1774738241585,-361.0,0.00015856,2]
[419004580,1774738241595,-361.0,0.00015868,2]
[419004581,1774738241607,-361.0,0.00015888,2]
[419004582,1774738241619,-2000.0,0.0001589,2]
[419004583,1774738241630,-4000.0,0.00015895,2]
[419004584,1774738241642,-361.0,0.00015902,2]
[419004585,1774738241653,-361.0,0.00015962,2]
[419004586,1774738241665,-3818.32173057,0.00015999,2]
[419004587,1774738241678,-2500.0,0.00016001,2]
[419004588,1774738241689,-5000.0,0.00016001,2]
[419004589,1774738241701,-433.0,0.00016004,2]
[419004590,1774738241712,-156.87047286,0.00016011,2]
[419004591,1774738241724,-391.68638923,0.0001604,2]
[419004592,1774738241736,-361.0,0.00016046,2]
[419004593,1774738241748,-500.0,0.00016073,2]
[419004595,1774738241759,-225.41,0.000161,2]
[419004596,1774738241770,-500.0,0.000161,2]
[419004597,1774738241781,-500.0,0.000161,2]
[419004598,1774738241792,-506.73713909,0.000161,2]
[419004599,1774738241802,-2500000.0,0.00016101,2]
[419004600,1774738241813,-308.0,0.00016111,2]
[419004601,1774738241824,-407.0,0.00016111,2]
[419004602,1774738241834,-3381.89,0.00016116,2]
[419004603,1774738241844,-536.56,0.0001614,2]
[419004604,1774738241854,-166.62,0.000162,2]
[419004605,1774738241865,-459.15,0.000162,2]
[419004606,1774738241877,-939.59,0.000162,2]
[419004607,1774738241887,-431.9,0.000162,2]
[419004608,1774738241899,-514.75,0.000162,2]
[419004609,1774738241911,-5849.17,0.000162,2]
[419004610,1774738241923,-4000.0,0.00016282,2]
[419004611,1774738241935,-361.0,0.00016287,2]
[419004612,1774738241947,-361.0,0.00016355,2]
[419004613,1774738241958,-361.0,0.0001644,2]
[419004614,1774738241970,-361.0,0.00016472,2]
[419004615,1774738241982,-250.0,0.0001648,2]
[419004616,1774738241993,-361.0,0.00016498,2]
[419004617,1774738242006,-2351.0,0.00016536,2]
[419004618,1774738242017,-272.657708,0.00016569,7]
[419004619,1774738242029,-1000.0,0.00016621,2]
[419004620,1774738242041,-4000.0,0.0001667,2]
[419004621,1774738242051,-282.800205,0.00016678,7]
[419004622,1774738242061,-227.811276,0.00016716,7]
[419004623,1774738242071,-1479.6818734,0.00016769,2]
[419004624,1774738242081,-2000.0,0.000168,2]
[419004625,1774738242091,-361.0,0.00016869,2]
[419004626,1774738242102,-513.0,0.0001687,4]
[419004627,1774738242116,-161.62,0.00016879,2]
[419004628,1774738242128,-2000.0,0.000169,2]
[419004629,1774738242139,-361.0,0.00016907,2]
[419004630,1774738242149,-361.0,0.00016921,2]
[419004631,1774738242160,-361.0,0.00016946,2]
[419004632,1774738242172,-361.0,0.00016948,2]
[419004633,1774738242184,-361.0,0.00017008,2]
[419004634,1774738242196,-361.0,0.00017018,2]
[419004635,1774738242208,-4000.0,0.00017058,2]
[419004636,1774738242219,-194.755503,0.00017277,7]
[419004637,1774738242229,-736.0,0.00017316,2]
[419004638,1774738242240,-536.56,0.0001751,2]
[419004639,1774738242253,-2000.0,0.00017543,2]
[419004640,1774738242264,-151.8355,0.000177,2]
[419004641,1774738242274,-161.62,0.00018084,2]
[419004642,1774738242284,-3292.0,0.00018189,2]
[419004643,1774738242295,-1252.0,0.00018737,2]
[419004644,1774738242305,-174.0,0.00018904,2]
[419004645,1774738242315,-194.377454,0.00019224,7]
[419004646,1774738242325,-161.62,0.0001929,2]
[419004647,1774738242336,-2000.0,0.00019297,2]
[419004648,1774738242347,-152.7617,0.000197,2]
[419004649,1774738242358,-513.0,0.00019739,7]
[419004650,1774738242368,-1345.0,0.00019814,2]
[419004651,1774738242379,-3517.0,0.00019814,2]
[419004652,1774738242391,-621.0,0.00019814,2]
[419004653,1774738242402,-1262.0,0.00019814,2]
[419004654,1774738242412,-150.143,0.00019814,2]
[419004655,1774738242423,-1216.0,0.00019814,2]
[419004656,1774738242433,-940.085,0.00019814,2]
[419004657,1774738242444,-3765.0,0.00019814,2]
[419004658,1774738242455,-6012.0,0.00019814,2]
[419004659,1774738242465,-415.0,0.00019814,2]
[419004660,1774738242475,-681.644262,0.00019868,7]
[419004661,1774738242486,-514.75,0.000199,2]
[419004662,1774738242496,-5849.17,0.000199,2]
[419004663,1774738242507,-185.43193,0.00019948,7]
[419004664,1774738242517,-154.46961229,0.00019968,2]
[419004665,1774738242527,-431.9,0.0002,2]
[419004666,1774738242538,-4609.0,0.00020008,2]
[419004667,1774738242548,-1353.0,0.00020268,2]
[419004668,1774738242559,-174.0,0.00020273,2]
[419004669,1774738242569,-408.986558,0.00020274,7]
[419004670,1774738242579,-2807.0,0.00020384,2]
[419004671,1774738242590,-161.62,0.00020495,2]
[419004672,1774738242600,-459.15,0.000205,2]
[419004673,1774738242611,-939.59,0.000205,2]
[419004674,1774738242621,-2807.0,0.00020991,2]
[419004675,1774738242632,-2000.0,0.00021052,2]
[419004676,1774738242643,-391.68638918,0.00021097,2]
[419004677,1774738242654,-212.100153,0.00021596,7]
[419004678,1774738242665,-162.0,0.00021598,2]
[419004679,1774738242675,-161.62,0.00021701,2]
[419004680,1774738242686,-194.377454,0.00021731,7]
[419004681,1774738242697,-153.6935,0.000218,2]
[419004682,1774738242708,-153.35,0.00021918,2]
[419004683,1774738242719,-176.2,0.00021918,2]
[419004684,1774738242730,-1153.24535537,0.0002197,2]
[419004685,1774738242741,-1570.0,0.00021995,2]
[419004686,1774738242751,-177.0,0.00022,2]
[419004687,1774738242762,-157.0,0.00022,2]
[419004688,1774738242773,-196.0,0.00022,2]
[419004689,1774738242783,-4226.0,0.00022,2]
[419004690,1774738242793,-876.0,0.00022,2]
[419004691,1774738242804,-6453.0,0.00022009,2]
[419004692,1774738242814,-509.040369,0.00022037,14]
[419004693,1774738242825,-187.4,0.00022101,2]
[419004694,1774738242835,-2807.0,0.0002226,2]
[419004695,1774738242846,-681.644262,0.0002246,14]
[419004696,1774738242857,-161.0,0.0002246,2]
[419004697,1774738242868,-185.43193,0.0002255,14]
[419004698,1774738242880,-513.0,0.00022609,9]
[419004699,1774738242891,-3517.0,0.00022814,2]
[419004700,1774738243048,-621.0,0.00022814,2]
[419004701,1774738243068,-1262.0,0.00022814,2]
[419004702,1774738243078,-150.0,0.00022814,2]
[419004703,1774738243089,-1216.0,0.00022814,2]
[419004704,1774738243099,-924.0,0.00022814,2]
[419004705,1774738243109,-3765.0,0.00022814,2]
[419004706,1774738243118,-6010.0,0.00022814,2]
[419004707,1774738243128,-408.986558,0.00022918,14]
[419004708,1774738243138,-177.0,0.00023,2]
[419004709,1774738243148,-157.0,0.00023,2]
[419004710,1774738243158,-196.0,0.00023,2]
[419004711,1774738243168,-4226.0,0.00023,2]
[419004712,1774738243178,-876.0,0.00023,2]
[419004713,1774738243189,-161.0,0.00023275,3]
[419004714,1774738243199,-1617.48,0.00023281,2]
[419004715,1774738243208,-431.9,0.000234,7]
[419004716,1774738243218,-514.75,0.000234,7]
[419004717,1774738243228,-5849.17,0.000234,2]
[419004718,1774738243238,-1570.0,0.0002342,3]
[419004719,1774738243248,-193.338575,0.00023657,14]
[419004720,1774738243259,-154.631,0.000238,2]
[419004721,1774738243268,-161.0,0.00023825,3]
[419004722,1774738243278,-177.0,0.00024,2]
[419004723,1774738243287,-157.0,0.00024,2]
[419004724,1774738243297,-196.0,0.00024,2]
[419004725,1774738243307,-4226.0,0.00024,2]
[419004726,1774738243317,-876.0,0.00024,2]
[419004727,1774738243327,-2807.0,0.00024145,3]
[419004728,1774738243337,-218.9943877,0.00024209,2]
[419004729,1774738243347,-3009.0,0.0002421,2]
[419004730,1774738243359,-187.38,0.00024214,2]
[419004731,1774738243369,-1570.0,0.0002426,3]
[419004732,1774738243379,-161.0,0.0002458,3]
[419004733,1774738243389,-161.0,0.0002458,3]
[419004734,1774738243399,-150.0,0.00024658,2]
[419004735,1774738243409,-939.59,0.000247,7]
[419004736,1774738243419,-150.0,0.00024761,7]
[419004737,1774738243429,-299.148323,0.00024764,7]
[419004738,1774738243439,-201.325442,0.000248,2]
[419004739,1774738243449,-700.0,0.0002487,2]
[419004740,1774738243460,-353.45675013,0.00024873,2]
[419004741,1774738243470,-349931.19282,0.000249,3]
[419004742,1774738243480,-500.0,0.00024986,2]
[419004743,1774738243490,-459.15,0.00025,7]
[419004744,1774738243500,-177.0,0.00025,2]
[419004745,1774738243509,-172.0,0.00025,2]
[419004746,1774738243519,-196.0,0.00025,2]
[419004747,1774738243528,-4226.0,0.00025,2]
[419004748,1774738243538,-876.0,0.00025,2]
[419004749,1774738243547,-1000.0,0.00025314,7]
[419004750,1774738243557,-513.0,0.00025478,12]
[419004751,1774738243567,-3515.0,0.00025814,2]
[419004752,1774738243576,-621.0,0.00025814,2]
[419004754,1774738243586,-1262.0,0.00025814,2]
[419004755,1774738243595,-150.0,0.00025814,2]
[419004757,1774738243605,-1216.0,0.00025814,2]
[419004759,1774738243614,-924.0,0.00025814,2]
[419004760,1774738243624,-3765.0,0.00025814,2]
[419004761,1774738243633,-932.0,0.00025845,5]
[419004762,1774738243643,-984.0,0.00025845,5]
[419004763,1774738243653,-150.0,0.0002589,2]
[419004764,1774738243663,-155.5743,0.000259,2]
[419004765,1774738243672,-259.674004,0.00025915,14]
[419004766,1774738243682,-177.0,0.00026,2]
[419004767,1774738243691,-196.0,0.00026,2]
[419004768,1774738243701,-4226.0,0.00026,2]
[419004769,1774738243710,-876.0,0.00026,2]
[419004770,1774738243719,-391.68638918,0.00026153,2]
[419004771,1774738243729,-431.9,0.000262,7]
[419004772,1774738243738,-500.0,0.00026693,2]
[419004773,1774738243749,-514.75,0.000268,7]
[419004774,1774738243758,-5849.17,0.000268,2]
[419004775,1774738243768,-184.0,0.00027,2]
[419004776,1774738243777,-200.0,0.00027,2]
[419004777,1774738243786,-4234.18496454,0.00027,2]
[419004778,1774738243796,-876.14281445,0.00027,2]
[419004779,1774738243805,-150.0,0.00027185,2]
[419004780,1774738243815,-187.4,0.00027332,2]
[419004781,1774738243825,-570.20192882,0.00027397,2]
[419004782,1774738243835,-1456.61,0.00027397,2]
[419004783,1774738243845,-1000.0,0.00027397,20]
[419004784,1774738243855,-25708.99,0.00027397,10]
[419004785,1774738243865,-21424.16,0.00027397,10]
[419004786,1774738243875,-500.0,0.00027397,5]
[419004787,1774738243885,-400.0,0.00027397,30]
[419004788,1774738243896,-1000.0,0.000274,2]
[419004789,1774738243906,-156.5233,0.00028,2]
[419004790,1774738243917,-312.0,0.000282,2]
[419004791,1774738243926,-953.0,0.000282,2]
[419004792,1774738243936,-513.0,0.00028348,14]
[419004793,1774738243946,-2000.0,0.000285,2]
[419004794,1774738243956,-150.0,0.00028544,2]
[419004795,1774738243967,-498.31463292,0.00028767,2]
[419004796,1774738243976,-1000.0,0.00028767,5]
[419004797,1774738243986,-621.0,0.00028814,2]
[419004798,1774738243996,-1262.0,0.00028814,2]
[419004799,1774738244006,-1216.0,0.00028814,2]
[419004800,1774738244016,-323.315,0.00028814,2]
[419004801,1774738244026,-294.8,0.00028842,2]
[419004802,1774738244036,-939.59,0.000289,7]
[419004803,1774738244046,-500.0,0.00028942,120]
[419004804,1774738244056,-150.0,0.00029971,2]
[419004805,1774738244066,-150.0,0.0003,2]
[419004806,1774738244075,-157.478,0.0003,2]
[419004807,1774738244084,-324.0,0.0003,2]
[419004808,1774738244093,-1000.0,0.0003,2]
[419004809,1774738244103,-150.0,0.00030136,20]
[419004810,1774738244112,-1500.0,0.00030137,5]
[419004811,1774738244122,-400.0,0.00030137,40]
[419004812,1774738244131,-1570.0,0.00030415,3]
[419004813,1774738244141,-431.9,0.000305,7]
[419004814,1774738244150,-214.1,0.00031,4]
[419004815,1774738244160,-156.87047284,0.00031166,2]
[419004816,1774738244169,-459.15,0.000312,7]
[419004817,1774738244178,-391.68638918,0.0003121,2]
[419004818,1774738244188,-513.0,0.00031217,17]
[419004819,1774738244198,-514.75,0.000313,7]
[419004820,1774738244207,-5849.17,0.000313,2]
[419004821,1774738244216,-150.0,0.0003147,2]
[419004822,1774738244225,-1109.08387476,0.00031507,5]
[419004823,1774738244235,-1479.68187339,0.00031545,2]
[419004824,1774738244244,-227.633,0.00031814,2]
[419004825,1774738244254,-1262.0,0.00031814,2]
[419004826,1774738244264,-1216.0,0.00031814,2]
[419004827,1774738244274,-158.4386,0.000321,2]
[419004828,1774738244283,-2000.0,0.000322,2]
[419004829,1774738244293,-503.0,0.00032767,2]
[419004830,1774738244304,-400.0,0.00032877,50]
[419004831,1774738244314,-89499.46,0.000329,7]
[419004832,1774738244323,-150.0,0.00033043,2]
[419004833,1774738244332,-187.4,0.00033854,2]
[419004834,1774738244342,-513.0,0.00034087,19]
[419004835,1774738244351,-159.4051,0.000341,2]
[419004836,1774738244361,-800.0,0.00034292,2]
[419004837,1774738244371,-800.0,0.00034292,2]
[419004838,1774738244380,-800.0,0.00034292,2]
[419004839,1774738244390,-800.0,0.00034292,2]
[419004840,1774738244399,-800.0,0.00034292,2]
[419004841,1774738244409,-800.0,0.00034292,2]
[419004842,1774738244418,-800.0,0.00034292,2]
[419004843,1774738244428,-800.0,0.00034292,2]
[419004844,1774738244438,-800.0,0.00034292,2]
[419004845,1774738244448,-420.0,0.00034292,2]
[419004846,1774738244458,-163.0,0.00034436,30]
[419004847,1774738244467,-157.0,0.00034436,30]
[419004850,1774738244476,-196.0,0.00034436,30]
[419004851,1774738244485,-4226.0,0.00034436,30]
[419004852,1774738244495,-876.0,0.00034436,30]
[419004853,1774738244504,-1950.0,0.00034475,2]
[419004854,1774738244513,-1950.0,0.00034475,2]
[419004855,1774738244523,-1950.0,0.00034475,2]
[419004856,1774738244532,-1950.0,0.00034475,2]
[419004858,1774738244542,-1950.0,0.00034475,2]
[419004860,1774738244551,-1950.0,0.00034475,2]
[419004862,1774738244560,-1950.0,0.00034475,2]
[419004864,1774738244569,-1950.0,0.00034475,2]
[419004866,1774738244578,-1950.0,0.00034475,2]
[419004868,1774738244587,-1850.0,0.00034475,2]
[419004870,1774738244597,-153.0,0.00034476,30]
[419004872,1774738244607,-177.0,0.00034476,30]
[419004873,1774738244616,-939.59,0.000345,30]
[419004874,1774738244625,-150.0,0.00034696,2]
[419004875,1774738244634,-1500.0,0.00034795,2]
[419004876,1774738244644,-431.9,0.000348,30]
[419004877,1774738244653,-1262.0,0.00034814,2]
[419004878,1774738244663,-1570.0,0.00034945,11]
[419004879,1774738244672,-514.75,0.00035,7]
[419004880,1774738244681,-5849.17,0.00035,2]
[419004881,1774738244690,-1000.0,0.00035,2]
[419004882,1774738244700,-1617.48,0.00035056,2]
[419004883,1774738244709,-165.0,0.00035436,30]
[419004884,1774738244718,-157.0,0.00035436,30]
[419004885,1774738244728,-196.0,0.00035436,30]
[419004886,1774738244738,-4226.0,0.00035436,30]
[419004887,1774738244747,-876.0,0.00035436,30]
[419004888,1774738244756,-153.0,0.00035476,30]
[419004889,1774738244765,-177.0,0.00035476,30]
[419004890,1774738244775,-2000.0,0.000359,2]
[419004891,1774738244784,-500.0,0.00035907,120]
[419004892,1774738244793,-150.0,0.00036,2]
[419004893,1774738244805,-160.3774,0.000362,2]
[419004894,1774738244814,-391.68638918,0.00036267,2]
[419004895,1774738244824,-150.0,0.0003643,2]
[419004896,1774738244834,-157.0,0.00036436,30]
[419004897,1774738244843,-196.0,0.00036436,30]
[419004898,1774738244853,-4226.0,0.00036436,30]
[419004899,1774738244862,-876.0,0.00036436,30]
[419004900,1774738244871,-153.0,0.00036476,30]
[419004901,1774738244881,-177.0,0.00036476,30]
[419004902,1774738244890,-459.15,0.000365,30]
[419004903,1774738244899,-152.0,0.00036762,3]
[419004904,1774738244909,-350.0,0.00036917,2]
[419004905,1774738244918,-350.0,0.00036917,2]
[419004906,1774738244927,-350.0,0.00036917,2]
[419004907,1774738244936,-350.0,0.00036917,2]
[419004908,1774738244946,-350.0,0.00036917,2]
[419004909,1774738244955,-350.0,0.00036917,2]
[419004910,1774738244965,-350.0,0.00036917,2]
[419004911,1774738244974,-350.0,0.00036917,2]
[419004912,1774738244985,-218.0,0.00036917,2]
[419004913,1774738244995,-513.0,0.00036957,22]
[419004914,1774738245005,-157.0,0.00037436,30]
[419004915,1774738245014,-196.0,0.00037436,30]
[419004916,1774738245024,-4226.0,0.00037436,30]
[419004917,1774738245035,-876.0,0.00037436,30]
[419004918,1774738245044,-2807.0,0.00037472,11]
[419004919,1774738245054,-153.0,0.00037476,30]
[419004920,1774738245064,-177.0,0.00037476,30]
[419004921,1774738245073,-89499.46,0.000375,7]
[419004922,1774738245083,-200.0,0.00037627,2]
[419004923,1774738245092,-200.0,0.00037627,2]
[419004924,1774738245102,-200.0,0.00037627,2]
[419004925,1774738245111,-200.0,0.00037627,2]
[419004926,1774738245121,-200.0,0.00037627,2]
[419004927,1774738245131,-200.0,0.00037627,2]
[419004928,1774738245140,-200.0,0.00037627,2]
[419004929,1774738245150,-200.0,0.00037627,2]
[419004930,1774738245159,-303.0,0.00037627,2]
[419004931,1774738245170,-319.45,0.00037654,2]
[419004932,1774738245179,-277.73807705,0.00037657,7]
[419004933,1774738245188,-1262.0,0.00037814,2]
[419004934,1774738245198,-165.0,0.00037977,120]
[419004935,1774738245208,-179.80326983,0.00037977,120]
[419004936,1774738245218,-159.0,0.00037977,120]
[419004937,1774738245227,-71926.40647443,0.000381,33]
[419004938,1774738245237,-161.3557,0.000382,2]
[419004939,1774738245247,-300.0,0.00038356,120]
[419004940,1774738245256,-939.59,0.000384,30]
[419004941,1774738245266,-157.0,0.00038436,30]
[419004942,1774738245276,-196.0,0.00038436,30]
[419004943,1774738245286,-4226.0,0.00038436,30]
[419004944,1774738245295,-876.0,0.00038436,30]
[419004945,1774738245304,-153.0,0.00038476,30]
[419004946,1774738245314,-177.0,0.00038476,30]
[419004947,1774738245323,-1931.916,0.000385,51]
[419004948,1774738245332,-173.419,0.000385,51]
[419004949,1774738245342,-431.9,0.000385,30]
[419004950,1774738245352,-2807.0,0.00038663,11]
[419004951,1774738245362,-514.75,0.000387,30]
[419004952,1774738245372,-5849.17,0.000387,30]
[419004953,1774738245381,-5282.7420608,0.00039,3]
[419004954,1774738245390,-151.053373,0.00039295,120]
[419004955,1774738245400,-161.0,0.00039332,11]
[419004956,1774738245410,-157.0,0.00039436,30]
[419004957,1774738245420,-196.0,0.00039436,30]
[419004958,1774738245429,-4226.0,0.00039436,30]
[419004959,1774738245439,-876.0,0.00039436,30]
[419004960,1774738245448,-153.0,0.00039476,30]
[419004961,1774738245457,-177.0,0.00039476,30]
[419004962,1774738245467,-2000.0,0.000396,2]
[419004963,1774738245476,-1570.0,0.00039652,11]
[419004964,1774738245486,-513.0,0.00039826,24]
[419004965,1774738245495,-700.0,0.0003997,2]
[419004966,1774738245504,-2807.0,0.00039974,11]
[419004967,1774738245513,-1500.0,0.00040201,2]
[419004968,1774738245523,-1500.0,0.00040201,2]
[419004969,1774738245532,-1500.0,0.00040201,2]
[419004970,1774738245542,-1500.0,0.00040201,2]
[419004971,1774738245551,-1500.0,0.00040201,2]
[419004972,1774738245560,-1500.0,0.00040201,2]
[419004973,1774738245570,-1500.0,0.00040201,2]
[419004974,1774738245580,-1500.0,0.00040201,2]
[419004975,1774738245590,-1500.0,0.00040201,2]
[419004976,1774738245599,-1124.0,0.00040201,2]
[419004977,1774738245609,-162.34,0.000403,2]
[419004978,1774738245618,-157.0,0.00040436,30]
[419004979,1774738245627,-196.0,0.00040436,30]
[419004980,1774738245637,-4226.0,0.00040436,30]
[419004981,1774738245647,-876.0,0.00040436,30]
[419004982,1774738245656,-153.0,0.00040476,30]
[419004983,1774738245666,-177.0,0.00040476,30]
[419004984,1774738245677,-89499.46,0.000405,7]
[419004985,1774738245687,-166.62,0.000405,30]
[419004986,1774738245697,-1990.0,0.00040547,120]
[419004987,1774738245707,-1990.0,0.00040821,120]
[419004988,1774738245716,-3486.5775,0.0004085,2]
[419004989,1774738245726,-1000.0,0.0004085,120]
[419004990,1774738245736,-1000.0,0.0004085,2]
[419004991,1774738245745,-459.15,0.000409,30]
[419004992,1774738245755,-111857.0,0.0004095,60]
[419004993,1774738245766,-161.0,0.00040966,11]
[419004994,1774738245775,-1990.0,0.00041095,120]
[419004995,1774738245784,-200.0,0.00041268,120]
[419004996,1774738245794,-391.68638918,0.00041323,3]
[419004997,1774738245804,-1990.0,0.00041369,120]
[419004998,1774738245814,-2807.0,0.00041606,11]
[419004999,1774738245824,-152.0,0.00041624,4]
[419005000,1774738245833,-1570.0,0.00041638,11]
[419005001,1774738245842,-1990.0,0.00041643,120]
[419005002,1774738245852,-151.0,0.00041914,14]
[419005003,1774738245861,-1990.0,0.00041917,120]
[419005004,1774738245870,-939.59,0.00042,30]
[419005005,1774738245982,-431.9,0.00042,30]
[419005006,1774738245992,-300.0,0.00042164,2]
[419005007,1774738246002,-1060.13977046,0.00042164,2]
[419005008,1774738246013,-307.61637486,0.00042164,2]
[419005009,1774738246023,-858.96862749,0.00042164,2]
[419005010,1774738246033,-308.89594717,0.00042164,2]
[419005011,1774738246043,-460.90074888,0.00042164,2]
[419005012,1774738246053,-300.0,0.00042164,2]
[419005013,1774738246063,-448.97026569,0.00042164,2]
[419005014,1774738246073,-302.93336394,0.00042164,2]
[419005015,1774738246083,-307.85359734,0.00042164,2]
[419005016,1774738246093,-300.0,0.00042164,2]
[419005017,1774738246103,-1087.70088883,0.00042164,2]
[419005018,1774738246113,-600.60949504,0.00042164,2]
[419005019,1774738246123,-300.0,0.00042164,2]
[419005020,1774738246133,-556.35940035,0.00042164,2]
[419005021,1774738246143,-1060.13977046,0.00042164,2]
[419005022,1774738246153,-307.61637486,0.00042164,2]
[419005023,1774738246164,-858.96862749,0.00042164,2]
[419005024,1774738246175,-308.89594717,0.00042164,2]
[419005025,1774738246185,-460.90074888,0.00042164,2]
[419005026,1774738246195,-300.0,0.00042164,2]
[419005027,1774738246205,-448.97026569,0.00042164,2]
[419005028,1774738246215,-302.93336394,0.00042164,2]
[419005029,1774738246227,-521.34304827,0.00042164,2]
[419005030,1774738246237,-307.85359734,0.00042164,2]
[419005031,1774738246248,-300.0,0.00042164,2]
[419005032,1774738246259,-1087.70088883,0.00042164,2]
[419005033,1774738246270,-600.60949504,0.00042164,2]
[419005034,1774738246282,-556.35940035,0.00042164,2]
[419005035,1774738246293,-1060.13977046,0.00042164,2]
[419005036,1774738246304,-559.56132581,0.00042164,2]
[419005037,1774738246314,-1990.0,0.00042191,120]
[419005038,1774738246325,-5800.0,0.0004221,14]
[419005039,1774738246335,-2807.0,0.00042278,16]
[419005040,1774738246344,-111857.0,0.000423,60]
[419005041,1774738246354,-89499.46,0.000423,7]
[419005042,1774738246364,-163.3302,0.000423,2]
[419005043,1774738246375,-514.75,0.000423,30]
[419005044,1774738246385,-5849.17,0.000423,30]
[419005045,1774738246395,-1990.0,0.00042465,120]
[419005046,1774738246405,-1308.7,0.00042546,120]